bitfinex/quotes_BTCUSD_20240803
["timestamp","ask_amount","ask_price","bid_price","bid_amount"]
[1722720111877,0.00083,60589.0,60588.0,2.61268989]
[1722720113707,0.00024101,60599.0,60598.0,1.60355]
[1722720113932,0.00024101,60599.0,60598.0,2.22234389]
[1722720114137,0.00024101,60599.0,60598.0,2.23434389]
[1722720114337,0.00024101,60599.0,60598.0,2.55238689]
[1722720114488,0.00024101,60599.0,60598.0,2.56438689]
[1722720114896,0.00024101,60599.0,60598.0,2.57238689]
[1722720115090,0.00024101,60599.0,60598.0,2.57038689]
[1722720115290,0.00024101,60599.0,60598.0,2.58038689]
[1722720115915,0.00024101,60599.0,60598.0,2.60038689]
[1722720116120,0.00024101,60599.0,60598.0,2.77468689]
[1722720116751,0.2491,60629.0,60598.0,2.77468689]
[1722720116752,0.01023,60632.0,60631.0,0.612896]
[1722720116960,0.01023,60632.0,60631.0,1.10851089]
[1722720117161,0.01023,60632.0,60631.0,1.56137489]
[1722720117361,0.01023,60632.0,60631.0,1.20851089]
[1722720117566,0.01023,60632.0,60631.0,1.56137489]
[1722720118245,0.01023,60632.0,60631.0,1.23951089]
[1722720118452,0.01023,60632.0,60631.0,1.56937489]
[1722720118840,0.01023,60632.0,60631.0,1.58337489]
[1722720119033,0.01023,60632.0,60631.0,1.57537489]
[1722720120063,0.01023,60632.0,60631.0,1.57037489]
[1722720120466,0.01023,60632.0,60631.0,1.55637489]
[1722720120729,0.01023,60632.0,60631.0,1.57837489]
[1722720120951,0.01023,60632.0,60631.0,1.57037489]
[1722720121136,0.01023,60632.0,60631.0,1.55637489]
[1722720121396,0.01023,60632.0,60631.0,1.57037489]
[1722720121622,0.01023,60632.0,60631.0,1.91423889]
[1722720121817,0.01023,60632.0,60631.0,1.13641089]
[1722720122021,0.01023,60632.0,60631.0,0.20775089]
[1722720122260,0.01023,60632.0,60617.0,0.04339251]
[1722720122261,0.329871,60630.0,60613.0,0.1959]
[1722720122456,0.08291805,60623.0,60615.0,0.16575089]
[1722720122660,0.164956,60622.0,60615.0,0.16575089]
[1722720122853,0.164952,60624.0,60615.0,0.16575089]
[1722720123085,0.177,60626.0,60615.0,0.16575089]
[1722720123303,0.08291805,60623.0,60615.0,0.16575089]
[1722720123561,0.08291805,60623.0,60583.0,0.00157439]
[1722720123562,0.2048,60594.0,60583.0,0.00157439]
[1722720123763,0.2048,60594.0,60582.0,0.49750831]
[1722720123764,0.495187,60583.0,60582.0,0.49750831]
[1722720123987,0.495204,60581.0,60580.0,0.2]
[1722720124197,1.414576,60581.0,60580.0,0.2]
[1722720124399,1.434576,60581.0,60580.0,0.2]
[1722720124605,1.49610113,60581.0,60580.0,0.2]
[1722720124805,1.49610113,60581.0,60570.0,0.600913]
[1722720124806,0.342095,60571.0,60570.0,0.600913]
[1722720125006,0.672286,60571.0,60570.0,0.600913]
[1722720125283,0.495286,60571.0,60570.0,0.600913]
[1722720125423,0.177,60571.0,60570.0,0.600913]
[1722720125835,0.18,60571.0,60570.0,0.601913]
[1722720126070,0.003,60571.0,60570.0,0.76766389]
[1722720127090,0.2491,60581.0,60570.0,0.93176089]
[1722720127410,0.2491,60581.0,60580.0,0.001]
[1722720127411,0.2501,60581.0,60580.0,0.001]
[1722720127665,0.2501,60581.0,60570.0,0.601913]
[1722720127666,0.49523,60578.0,60570.0,0.601913]
[1722720127862,0.001,60571.0,60570.0,0.602913]
[1722720128063,0.001,60571.0,60570.0,0.600913]
[1722720128472,0.001,60571.0,60570.0,0.602913]
[1722720128599,0.02589074,60572.0,60570.0,0.601913]
[1722720128803,0.16509,60573.0,60570.0,0.600913]
[1722720129227,0.16509,60573.0,60570.0,0.602913]
[1722720130367,0.16509,60573.0,60570.0,0.604913]
[1722720130746,0.165093,60572.0,60570.0,0.602913]
[1722720131185,0.165093,60572.0,60570.0,0.600913]
[1722720131384,0.16509,60573.0,60570.0,0.600913]
[1722720131606,0.0258909,60572.0,60570.0,0.600913]
[1722720132152,0.0258909,60572.0,60571.0,0.16575089]
[1722720133250,0.0258909,60572.0,60571.0,0.33084589]
[1722720133461,0.0258909,60572.0,60571.0,0.16575089]
[1722720133663,0.0258909,60572.0,60571.0,0.35384589]
[1722720133868,0.0258909,60572.0,60571.0,0.35484589]
[1722720134081,0.0258909,60572.0,60571.0,0.68486229]
[1722720134217,0.0258909,60572.0,60571.0,1.01491283]
[1722720134418,0.0258909,60572.0,60571.0,1.34610383]
[1722720134614,0.0258909,60572.0,60571.0,1.64170383]
[1722720135017,0.08291805,60589.0,60571.0,0.48603583]
[1722720135400,0.08291805,60589.0,60585.0,0.165057]
[1722720135601,0.08291805,60589.0,60572.0,0.02630102]
[1722720135602,0.238,60593.0,60587.0,0.330101]
[1722720135715,0.1953,60599.0,60588.0,0.16575089]
[1722720135716,0.08291805,60598.0,60588.0,0.16575089]
[1722720135923,0.08291805,60598.0,60591.0,0.165039]
[1722720136142,0.08291805,60598.0,60593.0,0.165035]
[1722720136349,0.238,60604.0,60594.0,0.49738728]
[1722720136549,0.238,60604.0,60594.0,0.16732528]
[1722720136973,0.238,60604.0,60598.0,0.165021]
[1722720137171,0.238,60604.0,60599.0,0.16732528]
[1722720137422,0.1953,60606.0,60600.0,0.330032]
[1722720137624,0.1953,60606.0,60597.0,0.330045]
[1722720137625,0.1953,60606.0,60601.0,0.16732528]
[1722720137826,0.001,60604.0,60601.0,0.16732528]
[1722720138037,0.001,60604.0,60601.0,0.33233728]
[1722720138208,0.238,60612.0,60601.0,0.16732528]
[1722720138536,0.02587851,60604.0,60603.0,0.82504]
[1722720138782,0.238,60612.0,60603.0,0.82504]
[1722720138783,0.238,60612.0,60610.0,0.164988]
[1722720138993,0.238,60612.0,60606.0,0.329997]
[1722720138994,0.4333,60624.0,60614.0,0.329954]
[1722720139171,0.4333,60624.0,60615.0,0.16575089]
[1722720139344,0.4333,60624.0,60618.0,0.164966]
[1722720139550,0.4333,60624.0,60619.0,0.16575089]
[1722720140130,0.4343,60624.0,60619.0,0.16575089]
[1722720140344,0.4333,60624.0,60619.0,0.16575089]
[1722720140736,0.4343,60624.0,60619.0,0.16575089]
[1722720141098,0.4353,60624.0,60619.0,0.16575089]
[1722720141498,0.4343,60624.0,60619.0,0.16575089]
[1722720142020,0.0258712,60623.0,60619.0,0.16575089]
[1722720142467,0.4353,60624.0,60619.0,0.16575089]
[1722720143073,0.4343,60624.0,60619.0,0.16575089]
[1722720143852,0.4353,60624.0,60619.0,0.16575089]
[1722720144417,0.4353,60624.0,60620.0,0.164961]
[1722720144620,0.4343,60624.0,60621.0,0.33070889]
[1722720144844,0.4343,60624.0,60621.0,0.16575089]
[1722720145679,0.4343,60624.0,60621.0,0.33070889]
[1722720145893,0.4343,60624.0,60621.0,0.16575089]
[1722720146101,0.4353,60624.0,60621.0,0.16575089]
[1722720146340,0.4343,60624.0,60621.0,0.16575089]
[1722720146517,0.4353,60624.0,60621.0,0.16575089]
[1722720147494,0.08291805,60622.0,60613.0,0.164979]
[1722720147708,0.08291805,60622.0,60614.0,0.16575089]
[1722720147915,0.08291805,60622.0,60614.0,0.16555416]
[1722720148376,0.08291805,60622.0,60614.0,0.33052916]
[1722720148554,0.329908,60623.0,60614.0,0.16555416]
[1722720148753,0.16496,60621.0,60614.0,0.16555416]
[1722720149324,0.164958,60622.0,60614.0,0.16555416]
[1722720149523,0.02587169,60620.0,60614.0,0.16555416]
[1722720149728,0.329908,60623.0,60614.0,0.16555416]
[1722720149934,0.164959,60621.0,60614.0,0.16555416]
[1722720150373,0.164962,60620.0,60614.0,0.16755416]
[1722720150578,0.164963,60620.0,60614.0,0.16755416]
[1722720150803,0.329914,60622.0,60614.0,0.16755416]
[1722720151014,0.329914,60622.0,60614.0,0.16555416]
[1722720151015,0.164958,60622.0,60614.0,0.16555416]
[1722720151364,0.001,60621.0,60614.0,0.16755416]
[1722720151497,0.164962,60620.0,60614.0,0.16555416]
[1722720151680,0.329926,60620.0,60614.0,0.16555416]
[1722720151886,0.164965,60619.0,60614.0,0.16555416]
[1722720152289,0.001,60621.0,60604.0,0.00939549]
[1722720152531,0.001,60621.0,60600.0,0.767228]
[1722720152532,0.08291805,60616.0,60605.0,0.16575089]
[1722720152748,0.164998,60607.0,60605.0,0.16575089]
[1722720153149,0.4515,60606.0,60600.0,0.2]
[1722720153451,0.165006,60604.0,60601.0,0.16575089]
[1722720153646,0.4515,60606.0,60601.0,0.16575089]
[1722720153647,0.616501,60606.0,60601.0,0.16575089]
[1722720153878,0.330007,60605.0,60601.0,0.16575089]
[1722720154102,0.330012,60604.0,60600.0,0.2]
[1722720154300,0.165012,60602.0,60600.0,0.36575089]
[1722720154507,0.165009,60603.0,60600.0,0.2]
[1722720154986,0.165013,60601.0,60600.0,0.2]
[1722720155446,0.49504,60601.0,60600.0,0.2]
[1722720155822,0.825067,60601.0,60600.0,0.2]
[1722720156233,0.825067,60601.0,60600.0,0.201]
[1722720156658,1.155094,60601.0,60600.0,0.201]
[1722720157008,1.165094,60601.0,60600.0,0.201]
[1722720157207,1.372094,60601.0,60600.0,0.201]
[1722720157413,1.362094,60601.0,60600.0,0.2]
[1722720157959,1.367094,60601.0,60600.0,0.2]
[1722720158497,1.39297569,60601.0,60600.0,0.2]
[1722720158638,1.367094,60601.0,60600.0,0.2]
[1722720160444,1.037067,60601.0,60600.0,0.2]
[1722720160672,0.377013,60601.0,60600.0,0.2]
[1722720160873,0.006,60601.0,60600.0,0.2]
[1722720161074,0.006,60601.0,60600.0,0.86079989]
[1722720161398,0.03187959,60601.0,60600.0,0.86079989]
[1722720161574,0.03187959,60601.0,60600.0,1.19083289]
[1722720161759,0.006,60601.0,60600.0,1.19083289]
[1722720162159,0.006,60601.0,60600.0,0.86079989]
[1722720162378,0.006,60601.0,60600.0,2.86079989]
[1722720162620,0.164987,60611.0,60600.0,2.69578389]
[1722720162949,0.164983,60612.0,60602.0,0.16501]
[1722720163100,0.164983,60612.0,60600.0,2.535033]
[1722720163101,0.164981,60613.0,60603.0,0.33233128]
[1722720163302,0.164988,60611.0,60603.0,0.16732528]
[1722720163469,0.164984,60612.0,60603.0,0.16732528]
[1722720163668,0.206,60615.0,60603.0,0.16732528]
[1722720163986,0.001,60611.0,60604.0,0.165004]
[1722720164185,0.001,60611.0,60602.0,0.330021]
[1722720164186,0.001,60611.0,60608.0,0.164993]
[1722720164368,0.206,60615.0,60609.0,0.00157439]
[1722720164567,0.0258749,60610.0,60607.0,0.00157439]
[1722720164770,0.0258749,60610.0,60609.0,0.494974]
[1722720165014,0.0258749,60610.0,60609.0,0.66072489]
[1722720165673,0.0258749,60610.0,60609.0,0.33074189]
[1722720166013,0.0298749,60610.0,60609.0,0.99070789]
[1722720166236,0.004,60610.0,60609.0,0.16575089]
[1722720166441,0.005,60610.0,60609.0,0.16575089]
[1722720166666,0.005,60610.0,60609.0,0.33074189]
[1722720166865,0.005,60610.0,60609.0,0.16575089]
[1722720167143,0.005,60610.0,60609.0,0.33074189]
[1722720167357,0.005,60610.0,60609.0,0.66072489]
[1722720167765,0.005,60610.0,60609.0,0.33074189]
[1722720167969,0.005,60610.0,60609.0,0.66072489]
[1722720168182,0.005,60610.0,60609.0,0.99070789]
[1722720168325,0.005,60610.0,60609.0,0.66072489]
[1722720168528,0.001,60610.0,60609.0,0.66072489]
[1722720168906,0.002,60610.0,60609.0,0.66072489]
[1722720169716,0.02787457,60610.0,60609.0,0.86242489]
[1722720171283,0.02787457,60610.0,60609.0,1.19240789]
[1722720172011,0.02787457,60610.0,60609.0,1.54539089]
[1722720172217,0.02687457,60610.0,60609.0,1.54539089]
[1722720172647,0.02687457,60610.0,60609.0,1.55339089]
[1722720173027,0.02587457,60610.0,60609.0,1.55639089]
[1722720173246,0.02587457,60610.0,60609.0,1.54539089]
[1722720173460,0.02587457,60610.0,60609.0,1.55839089]
[1722720173461,0.02687457,60610.0,60609.0,1.55839089]
[1722720173662,0.02687457,60610.0,60609.0,1.57039089]
[1722720173865,0.001,60610.0,60609.0,1.57039089]
[1722720176847,0.02687303,60610.0,60609.0,1.57039089]
[1722720177314,0.02687303,60610.0,60609.0,1.24040789]
[1722720177560,0.02687303,60610.0,60609.0,1.21740789]
[1722720179989,0.02687303,60610.0,60609.0,1.22681732]
[1722720182056,0.001,60610.0,60609.0,1.22681732]
[1722720183244,0.001,60610.0,60609.0,1.55680032]
[1722720183466,0.001,60610.0,60609.0,1.22681732]
[1722720184470,0.001,60610.0,60609.0,1.55680032]
[1722720185034,0.02687367,60610.0,60609.0,1.55680032]
[1722720185192,0.001,60610.0,60609.0,1.55680032]
[1722720185923,0.001,60610.0,60609.0,1.22681732]
[1722720186482,0.001,60610.0,60609.0,1.55680032]
[1722720187918,0.001,60610.0,60609.0,1.35510032]
[1722720188260,0.02687367,60610.0,60609.0,1.35510032]
[1722720189688,0.001,60610.0,60609.0,1.35510032]
[1722720190626,0.001,60610.0,60609.0,1.01570789]
[1722720191285,0.001,60610.0,60609.0,0.19075089]
[1722720191626,0.2503,60610.0,60609.0,0.35574189]
[1722720191822,0.2503,60610.0,60609.0,0.19075089]
[1722720192765,0.2503,60610.0,60609.0,0.68572489]
[1722720192961,0.2503,60610.0,60609.0,0.19075089]
[1722720196488,0.27617544,60610.0,60609.0,0.19075089]
[1722720196877,0.27617544,60610.0,60609.0,0.025]
[1722720197823,0.27617544,60610.0,60609.0,0.013]
[1722720197983,0.27517544,60610.0,60609.0,0.000913]
[1722720198335,0.27617544,60610.0,60609.0,0.011913]
[1722720198494,0.44116444,60610.0,60609.0,0.011913]
[1722720198692,0.27617544,60610.0,60609.0,0.011913]
[1722720198893,0.63846444,60610.0,60609.0,0.011913]
[1722720199696,0.47347544,60610.0,60609.0,0.011913]
[1722720200298,0.96844244,60610.0,60609.0,0.011913]
[1722720200494,0.63846444,60610.0,60609.0,0.011913]
[1722720200716,0.47347544,60610.0,60609.0,0.011913]
[1722720201635,0.4862973,60610.0,60609.0,0.011913]
[1722720202620,0.47347544,60610.0,60609.0,0.011913]
[1722720203121,0.02687544,60610.0,60609.0,1.00262089]
[1722720203318,0.02687544,60610.0,60609.0,1.02562089]
[1722720203438,0.02687544,60610.0,60609.0,0.20066389]
[1722720203640,0.02687544,60610.0,60609.0,0.36565489]
[1722720204101,0.02687544,60610.0,60609.0,0.20066389]
[1722720204302,0.02687544,60610.0,60609.0,0.36565489]
[1722720204523,0.02687544,60610.0,60609.0,0.69563789]
[1722720205713,0.00535916,60617.0,60616.0,1.154807]
[1722720205880,0.00083,60621.0,60620.0,0.494886]
[1722720206092,0.00083,60621.0,60620.0,1.81935779]
[1722720206347,0.00083,60621.0,60620.0,1.82935779]
[1722720206901,0.00083,60621.0,60620.0,1.88790867]
[1722720207122,0.00083,60621.0,60620.0,1.88590867]
[1722720207438,0.00083,60621.0,60620.0,1.82235779]
[1722720207638,0.00083,60621.0,60620.0,1.81735779]
[1722720207957,0.00083,60621.0,60620.0,1.82435779]
[1722720208333,0.00083,60621.0,60620.0,1.78040889]
[1722720208513,0.00083,60621.0,60620.0,1.45048489]
[1722720209055,0.00083,60621.0,60620.0,1.46348489]
[1722720209257,0.00083,60621.0,60620.0,1.45648489]
[1722720209481,0.00083,60621.0,60620.0,1.46848489]
[1722720209858,0.00083,60621.0,60620.0,1.45648489]
[1722720210168,0.00083,60621.0,60620.0,1.47048489]
[1722720210527,0.00083,60621.0,60620.0,1.46706965]
[1722720210718,0.00083,60621.0,60620.0,1.48106965]
[1722720211357,0.00083,60621.0,60620.0,0.014]
[1722720211523,0.00083,60621.0,60620.0,0.028]
[1722720211711,0.165789,60621.0,60620.0,0.028]
[1722720212119,0.165789,60621.0,60611.0,0.164985]
[1722720212322,0.00083,60621.0,60612.0,0.49571589]
[1722720212522,0.165789,60621.0,60620.0,0.014]
[1722720212948,0.165789,60621.0,60612.0,0.16575089]
[1722720212949,0.00083,60621.0,60612.0,0.16575089]
[1722720213125,0.00083,60621.0,60620.0,0.001]
[1722720213333,0.00183,60621.0,60620.0,0.001]
[1722720213533,0.00183,60621.0,60614.0,0.164977]
[1722720213789,0.00283,60621.0,60615.0,0.16575089]
[1722720213964,0.16779,60621.0,60615.0,0.16575089]
[1722720214508,0.329924,60620.0,60609.0,0.330895]
[1722720214769,0.164965,60619.0,60610.0,0.16575089]
[1722720214975,0.164964,60619.0,60610.0,0.33073889]
[1722720215527,0.164964,60619.0,60610.0,0.16575089]
[1722720215984,0.164964,60619.0,60610.0,0.33073789]
[1722720216118,0.165964,60619.0,60610.0,0.33073789]
[1722720216456,0.164967,60618.0,60610.0,0.16575089]
[1722720216866,0.164974,60616.0,60610.0,0.16575089]
[1722720216995,0.002,60619.0,60610.0,0.16575089]
[1722720217204,0.02587306,60617.0,60610.0,0.16575089]
[1722720217611,0.19084306,60617.0,60610.0,0.16575089]
[1722720217816,0.19084306,60617.0,60609.0,0.000913]
[1722720217817,0.1768,60614.0,60609.0,0.000913]
[1722720218036,0.164987,60611.0,60609.0,0.000913]
[1722720218239,0.164989,60610.0,60609.0,0.000913]
[1722720218662,0.164984,60612.0,60609.0,0.000913]
[1722720219102,0.50976,60614.0,60609.0,0.000913]
[1722720219277,0.164988,60611.0,60609.0,0.000913]
[1722720219478,0.164987,60611.0,60609.0,0.000913]
[1722720219844,0.164989,60610.0,60609.0,0.000913]
[1722720220995,0.494967,60610.0,60609.0,0.000913]
[1722720221853,0.52084372,60610.0,60609.0,0.001913]
[1722720222260,0.494967,60610.0,60609.0,0.001913]
[1722720222615,0.8508225,60610.0,60609.0,0.001913]
[1722720223383,0.824945,60610.0,60609.0,0.001913]
[1722720223750,0.494967,60610.0,60609.0,0.001913]
[1722720224218,1.272545,60610.0,60609.0,0.001913]
[1722720224421,0.942567,60610.0,60609.0,0.001913]
[1722720226682,0.9684445,60610.0,60609.0,0.001913]
[1722720227063,1.2984225,60610.0,60609.0,0.001913]
[1722720229762,1.3077026,60610.0,60609.0,0.001913]
[1722720231123,1.3177026,60610.0,60609.0,0.001913]
[1722720231464,1.6476806,60610.0,60609.0,0.001913]
[1722720231614,1.3177026,60610.0,60609.0,0.001913]
[1722720231994,1.6476806,60610.0,60609.0,0.001913]
[1722720232629,1.6376806,60610.0,60609.0,0.001913]
[1722720232832,1.3077026,60610.0,60609.0,0.001913]
[1722720234049,1.6376806,60610.0,60609.0,0.001913]
[1722720234975,1.3077026,60610.0,60609.0,0.001913]
[1722720235187,1.6376806,60610.0,60609.0,0.001913]
[1722720235390,1.3077026,60610.0,60609.0,0.001913]
[1722720235736,1.6376806,60610.0,60609.0,0.001913]
[1722720236447,1.6476806,60610.0,60609.0,0.001913]
[1722720236804,1.3077026,60610.0,60609.0,0.001913]
[1722720237406,1.6376806,60610.0,60609.0,0.001913]
[1722720239557,1.3077026,60610.0,60609.0,0.001913]
[1722720239764,1.3077026,60610.0,60570.0,0.015613]
[1722720239765,0.1768,60595.0,60570.0,0.015613]
[1722720239987,0.48265938,60610.0,60531.0,0.03329]
[1722720239988,0.865885,60541.0,60531.0,0.03329]
[1722720240185,0.865885,60541.0,60524.0,0.12346449]
[1722720240186,0.285226,60523.0,60522.0,0.0493884]
[1722720240394,1.647382,60523.0,60522.0,0.0493884]
[1722720240567,0.711703,60520.0,60519.0,0.00929]
[1722720240773,2.45615069,60520.0,60519.0,0.00929]
[1722720240976,3.69985185,60520.0,60519.0,0.00929]
[1722720241175,1.188792,60512.0,60470.0,0.1768]
[1722720241377,1.70204908,60512.0,60475.0,0.1868]
[1722720241580,0.888295,60511.0,60475.0,0.1868]
[1722720241780,2.10891034,60511.0,60475.0,0.1868]
[1722720241981,1.80365906,60511.0,60475.0,0.1868]
[1722720242133,1.61184948,60511.0,60476.0,0.00330676]
[1722720242341,1.80864948,60511.0,60476.0,0.00330676]
[1722720242563,1.669613,60511.0,60475.0,0.1868]
[1722720242762,1.80706278,60511.0,60475.0,0.1868]
[1722720243222,2.051231,60511.0,60510.0,0.01029]
[1722720243821,2.07715883,60511.0,60510.0,0.01029]
[1722720244032,2.07815883,60511.0,60510.0,0.01129]
[1722720244227,2.07815883,60511.0,60468.0,0.2415]
[1722720244228,0.525966,60488.0,60469.0,0.08291805]
[1722720244577,1.532298,60488.0,60458.0,0.2499]
[1722720244703,1.826298,60488.0,60459.0,0.08291805]
[1722720245235,2.05073245,60488.0,60459.0,0.08291805]
[1722720245640,2.54712734,60488.0,60458.0,0.00929]
[1722720245842,2.19054889,60488.0,60458.0,0.00929]
[1722720246173,2.52119289,60488.0,60458.0,0.00929]
[1722720246383,0.03,60459.0,60458.0,0.00929]
[1722720246585,0.528203,60459.0,60458.0,0.00929]
[1722720246730,1.189807,60459.0,60458.0,0.00929]
[1722720247144,1.620609,60459.0,60458.0,0.00929]
[1722720247543,2.18032079,60459.0,60458.0,0.00929]
[1722720247745,2.34906189,60459.0,60458.0,0.00929]
[1722720247950,2.37206189,60459.0,60458.0,0.00929]
[1722720248154,1.187999,60449.0,60448.0,0.00994091]
[1722720248386,2.43228194,60449.0,60448.0,0.00994091]
[1722720248621,2.45228194,60449.0,60448.0,0.00994091]
[1722720248838,2.47528194,60449.0,60448.0,0.00994091]
[1722720249164,3.21353283,60449.0,60448.0,0.00994091]
[1722720249383,3.30078756,60449.0,60448.0,0.00994091]
[1722720249584,1.11437,60425.0,60424.0,0.07377176]
[1722720249841,2.26691494,60425.0,60424.0,0.07377176]
[1722720250045,2.26691494,60425.0,60383.0,0.1884]
[1722720250046,0.85958,60417.0,60387.0,0.00331105]
[1722720250262,0.85958,60417.0,60383.0,0.1884]
[1722720250263,0.197565,60399.0,60383.0,0.1884]
[1722720250459,0.859827,60399.0,60383.0,0.1884]
[1722720250666,0.959827,60399.0,60383.0,0.1884]
[1722720252061,1.12557789,60399.0,60383.0,0.1884]
[1722720252464,0.01,60358.0,60348.0,0.066356]
[1722720252642,0.165664,60364.0,60349.0,0.16575089]
[1722720252643,0.01,60353.0,60349.0,0.16575089]
[1722720252842,0.03,60362.0,60349.0,0.16575089]
[1722720253106,0.01,60362.0,60357.0,0.1884]
[1722720253244,0.03,60358.0,60357.0,0.1884]
[1722720253454,0.032,60358.0,60357.0,0.1884]
[1722720253715,0.03,60358.0,60357.0,0.1884]
[1722720253932,0.01,60371.0,60357.0,0.60405089]
[1722720254141,0.49750831,60385.0,60375.0,0.331261]
[1722720254338,0.01,60378.0,60377.0,0.16575089]
[1722720254457,0.49750831,60385.0,60377.0,0.16575089]
[1722720254458,0.01,60380.0,60377.0,0.16575089]
[1722720254655,0.01,60384.0,60377.0,0.16575089]
[1722720254856,0.02,60386.0,60377.0,0.16575089]
[1722720255058,0.02,60386.0,60378.0,0.023]
[1722720255262,0.01,60382.0,60379.0,0.16575089]
[1722720255626,0.01,60380.0,60379.0,0.16575089]
[1722720256202,0.03,60380.0,60379.0,0.16575089]
[1722720256408,0.032,60380.0,60379.0,0.16575089]
[1722720256614,0.03,60380.0,60379.0,0.16575089]
[1722720257408,0.01,60380.0,60379.0,0.16575089]
[1722720257609,0.02,60381.0,60379.0,0.16575089]
[1722720257610,0.01,60381.0,60379.0,0.16575089]
[1722720258631,0.02,60382.0,60371.0,0.4383]
[1722720258632,0.02,60376.0,60371.0,0.4383]
[1722720258834,0.01,60374.0,60372.0,0.16575089]
[1722720259039,0.012,60373.0,60372.0,0.16575089]
[1722720259239,0.01,60373.0,60372.0,0.16575089]
[1722720259445,0.03,60373.0,60372.0,0.16575089]
[1722720259643,0.032,60373.0,60372.0,0.16575089]
[1722720260069,0.032,60373.0,60371.0,0.4383]
[1722720260070,0.032,60372.0,60371.0,0.4383]
[1722720260274,0.01,60367.0,60363.0,0.1928]
[1722720260474,0.02,60368.0,60364.0,0.33141089]
[1722720260674,0.01,60368.0,60364.0,0.16575089]
[1722720260881,0.001,60373.0,60372.0,0.170639]
[1722720261077,0.001,60373.0,60372.0,0.66766889]
[1722720261356,0.001,60373.0,60372.0,0.99894789]
[1722720261599,0.001,60373.0,60372.0,1.02194789]
[1722720261806,0.001,60373.0,60372.0,1.35322689]
[1722720262003,0.001,60373.0,60372.0,1.89462689]
[1722720262209,0.00083,60380.0,60379.0,0.16562]
[1722720262410,0.00083,60380.0,60379.0,0.68561089]
[1722720262608,0.00083,60380.0,60379.0,1.01685089]
[1722720263377,0.00083,60380.0,60379.0,0.35437089]
[1722720263550,0.03083,60380.0,60379.0,0.16575089]
[1722720263752,0.03383,60380.0,60379.0,0.17275089]
[1722720263906,0.03383,60380.0,60379.0,0.16575089]
[1722720264108,0.01,60374.0,60372.0,0.4414]
[1722720264311,0.01,60374.0,60373.0,0.16575089]
[1722720264568,0.03,60374.0,60373.0,0.16575089]
[1722720264710,0.01,60374.0,60373.0,0.16575089]
[1722720264912,0.01,60374.0,60372.0,0.4414]
[1722720264913,0.03,60373.0,60372.0,0.4414]
[1722720265137,0.03,60373.0,60372.0,0.1928]
[1722720265339,0.03,60373.0,60372.0,0.35855089]
[1722720265746,0.032,60373.0,60372.0,0.35855089]
[1722720266304,0.03,60373.0,60372.0,0.35855089]
[1722720267052,0.032,60373.0,60372.0,0.35855089]
[1722720267286,0.032,60373.0,60372.0,0.35955089]
[1722720269279,0.032,60373.0,60372.0,0.35855089]
[1722720269483,0.032,60373.0,60372.0,0.85946889]
[1722720269484,0.03,60373.0,60372.0,0.85946889]
[1722720269683,0.00083,60380.0,60372.0,0.85946889]
[1722720269684,0.03,60377.0,60376.0,0.496885]
[1722720269912,0.03,60378.0,60377.0,0.828127]
[1722720270067,0.03,60379.0,60378.0,0.496869]
[1722720270273,0.00083,60380.0,60378.0,0.496869]
[1722720270274,0.00083,60380.0,60379.0,0.49686]
[1722720270480,0.00083,60380.0,60379.0,0.99385089]
[1722720271839,0.00083,60380.0,60379.0,1.32509089]
[1722720272554,0.00083,60380.0,60379.0,1.56379089]
[1722720272754,0.00083,60380.0,60379.0,1.56879089]
[1722720273109,0.00083,60380.0,60379.0,1.59179089]
[1722720273535,0.00083,60380.0,60379.0,1.91803089]
[1722720273738,0.001,60380.0,60379.0,0.62805089]
[1722720273944,0.001,60380.0,60379.0,1.22491089]
[1722720274138,0.001,60380.0,60379.0,2.21863089]
[1722720274536,0.002,60399.0,60379.0,0.53845089]
[1722720274537,0.01,60399.0,60379.0,0.53845089]
[1722720274794,0.03,60403.0,60400.0,0.496687]
[1722720274979,0.01,60405.0,60400.0,1.32468789]
[1722720275214,0.01,60405.0,60404.0,0.827757]
[1722720275452,0.01,60406.0,60405.0,0.827745]
[1722720275706,0.01,60408.0,60407.0,0.49663]
[1722720275965,0.01,60408.0,60407.0,0.66238089]
[1722720276195,0.03,60408.0,60407.0,0.66238089]
[1722720276674,0.032,60408.0,60407.0,0.16575089]
[1722720276874,0.032,60408.0,60396.0,0.331145]
[1722720276875,0.03,60399.0,60396.0,0.331145]
[1722720277171,0.03,60399.0,60398.0,0.53071889]
[1722720277316,0.032,60399.0,60398.0,0.16575089]
[1722720277756,0.03,60392.0,60391.0,0.4882]
[1722720277893,0.03,60392.0,60391.0,0.81953789]
[1722720278103,0.34172392,60392.0,60391.0,0.81953789]
[1722720278309,0.34172392,60392.0,60391.0,1.15071289]
[1722720278527,0.34172392,60392.0,60391.0,0.16575089]
[1722720278763,0.02,60384.0,60383.0,0.496827]
[1722720278966,0.02,60384.0,60383.0,0.16575089]
[1722720279180,0.1576701,60384.0,60383.0,0.66257889]
[1722720279395,0.32975773,60384.0,60383.0,0.66257889]
[1722720279623,0.32975773,60384.0,60383.0,0.16575089]
[1722720279827,0.34175773,60384.0,60383.0,0.66257889]
[1722720280236,0.31975773,60384.0,60383.0,0.99379789]
[1722720280434,0.31975773,60384.0,60383.0,0.67157889]
[1722720280435,0.33975773,60384.0,60383.0,0.67157889]
[1722720280655,0.34175773,60384.0,60383.0,0.34035989]
[1722720281077,0.34175773,60384.0,60383.0,0.67157889]
[1722720281409,0.33976871,60384.0,60383.0,0.67157889]
[1722720281816,0.14767498,60384.0,60383.0,0.67157889]
[1722720282028,0.33976826,60384.0,60383.0,0.67157889]
[1722720282232,0.34176826,60384.0,60383.0,0.66257889]
[1722720282679,0.34176826,60384.0,60383.0,0.66657889]
[1722720282792,0.34176826,60384.0,60383.0,0.33535989]
[1722720283001,0.34176826,60384.0,60383.0,0.16575089]
[1722720283229,0.33976826,60384.0,60383.0,0.34035989]
[1722720283436,0.34176826,60384.0,60383.0,0.17475089]
[1722720284511,0.33976826,60384.0,60383.0,0.17475089]